Cogmind - Beta 13 @@@ ROGUE MODE // 2024.03.31 @ 01:46:21 Player: Pinyateh Result: Destroyed by S-10 Pest with Light Assault Rifle Performance ------------- Evolutions (1) 500 Regions Visited (3) 600 Robots Destroyed (17) 85 Value Destroyed (486) 486 Prototype IDs (1) 20 Alien Tech Used (0) 0 Bonus (0) 0 TOTAL SCORE: 1691 Bonus ------- None Cogmind --------- Core Integrity 0/400 Matter 288/300 Energy 99/100 System Corruption 0% Temperature Cool (0) Movement Core (50) Location -9/Mines Parts ------- > --- POWER (2) -------- (None) > --- PROPULSION (2) --- (None) > --- UTILITY (2) ------ Core Shielding Utility Shielding > --- WEAPON (3) ------- (None) > --- INVENTORY (5) ---- Improved Flight Unit Heat Sink Medium Matter Pod (12) Weight Redist. System Peak State ------------ > --- POWER ------------ Ion Engine Light Nuclear Core > --- PROPULSION ------- Improved Flight Unit > --- UTILITY ---------- ECM Suite Utility Shielding > --- WEAPON ----------- EM Shotgun Light Assault Rifle Light Assault Rifle > --- INVENTORY -------- (None) [Rating: 13] Favorites ----------- Power Ion Engine Engine Ion Engine Power Core Light Nuclear Core Propulsion Wheel Treads Light Treads Wheel Wheel Flight Unit Improved Flight Unit Utility Utility Shielding Device ECM Suite Protection Utility Shielding Weapon Light Assault Rifle Energy Gun EM Shotgun Ballistic Gun Light Assault Rifle Build | -11 -10 -9 -9 ------- Run | Yrd Mat Mat Min Slots Evolved 2 | . . 2 . Power 1 | . . 1 . Propulsion . | . . . . Utility . | . . . . Weapon 1 | . . 1 . Parts Attached 25 | 6 4 11 4 Power 6 | 1 1 3 1 Engine 5 | 1 1 2 1 Core 1 | . . 1 . Reactor . | . . . . Propulsion 7 | 2 . 3 2 Treads 1 | . . 1 . Leg . | . . . . Wheel 4 | 2 . . 2 Hover . | . . . . Flight 2 | . . 2 . Utility 7 | 1 2 3 1 Device 4 | 1 1 2 . Storage . | . . . . Processor . | . . . . Hackware . | . . . . Protection 3 | . 1 1 1 Artifact . | . . . . Weapon 5 | 2 1 2 . Energy Gun 2 | 1 . 1 . Energy Cannon . | . . . . Ballistic Gun 3 | 1 1 1 . Ballistic Cannon . | . . . . Launcher . | . . . . Special Weapon . | . . . . Impact Weapon . | . . . . Slashing Weapon . | . . . . Piercing Weapon . | . . . . Special Melee Weapon . | . . . . Unidentified Prototypes 1 | . . 1 . Parts Lost 11 | . 2 6 3 Power 3 | . . 2 1 Propulsion 5 | . 2 1 2 Utility 1 | . . 1 . Weapon 2 | . . 2 . Highest Loss Streak 3 | . 2 3 3 To Critical Strikes . | . . . . Average Slot Usage (%) 73 | . 93 63 50 Engine 11 | . 14 10 9 Core 1 | . . 3 . Treads 2 | . . 5 . Wheel 10 | . 24 . 19 Flight 2 | . . 5 . Device 7 | . 14 5 1 Protection 14 | . 11 14 21 Energy Gun 4 | . . 7 . Ballistic Gun 16 | . 27 12 . Naked Turns . | . . . . Heaviest Build 18 | 7 10 18 5 Greatest Support 26 | 20 20 20 26 Greatest Overweight (x) 5 | . 3 5 . Average Overweight (x) . | . . . . Largest Inventory Capacity 5 | 5 5 5 5 Average Capacity 5 | 5 5 5 5 Most Carried 5 | 2 5 5 5 Average Carried 2 | . 3 1 4 Final Capacity 5 | 5 5 5 5 Final Carried 5 | . 4 5 4 Class Distribution -------------------- 82% | Mutant 14% | Tank 3% | Scavenger-Mutant Dominant Class ---------------- Mutant | -10/Materials Mutant | -9/Materials Mutant | -9/Mines Resources | -11 -10 -9 -9 ----------- Run | Yrd Mat Mat Min Matter Collected 489 | 253 80 134 22 Remotely . | . . . . Salvage Created 708 | 48 187 473 . Parts 35 | 3 6 26 . Haulers Intercepted . | . . . . Recyclers Shooed . | . . . . Parts Field Recycled . | . . . . Retrieved Matter . | . . . . Parts Self-Destructed . | . . . . Prevented . | . . . . Kills | -11 -10 -9 -9 ------- Run | Yrd Mat Mat Min Combat Hostiles Destroyed 14 | 1 4 9 . Guns 14 | 1 4 9 . Classes Destroyed 6 | 1 . 5 . Worker 1 | . . 1 . Recycler 1 | . . 1 . Watcher 1 | . . 1 . Swarmer 3 | . . 3 . Grunt 8 | 1 4 3 . Sentry 3 | . . 3 . Best Kill Streak 3 | 1 2 3 . Combat Bots Only 3 | 1 2 3 . Max Kills in Single Turn 2 | 1 2 2 . Gunslinging 1 | . 1 . . Exploded . | . . . . Melee . | . . . . Uniques/NPCs Destroyed . | . . . . Combat | -11 -10 -9 -9 -------- Run | Yrd Mat Mat Min Hostile Shots Fired 181 | 3 36 111 31 Missed 66 | 1 6 50 9 Damage Taken 1401 | 23 369 819 190 Core 509 | . 108 330 71 Absorbed by Shields . | . . . . Redirected to Shielding 19 | . 6 . 13 Core Remaining (%) 78 | 100 56 . . Volleys Fired 69 | 3 20 46 . Largest 3 | 2 2 3 . Hottest 85 | 60 40 85 . Shots Fired 121 | 6 40 75 . Gun 121 | 6 40 75 . Cannon . | . . . . Launcher . | . . . . Special . | . . . . Kinetic 90 | 3 40 47 . Thermal . | . . . . Explosive . | . . . . Electromagnetic 31 | 3 . 28 . Robot Hit Streak 13 | 1 5 13 . Robot Miss Streak 5 | 2 4 5 . Penetration Max . | . . . . Secondary Targets 3 | . 2 1 . Max Gunslinging Chain 1 | . 1 1 . Shots Hit Robots 82 | 2 25 55 . Core Hits 38 | 1 7 28 2 Critical Kills 1 | . 1 . . Critical Parts Destroyed 1 | . . 1 . Critical Strikes 2 | . 1 1 . Destroy 2 | . 1 1 . Melee Attacks . | . . . . Impact . | . . . . Slashing . | . . . . Piercing . | . . . . Sneak Attacks . | . . . . Combat Hostiles . | . . . . Follow-up Attacks . | . . . . Damage Inflicted 899 | 28 226 636 9 Guns 879 | 28 215 636 . Cannons . | . . . . Explosions . | . . . . Melee . | . . . . Ramming 20 | . 11 . 9 Kinetic 485 | . 215 270 . Thermal . | . . . . Explosive . | . . . . Electromagnetic 394 | 28 . 366 . Impact . | . . . . Slashing . | . . . . Piercing . | . . . . Highest Corruption . | . . . . Average Corruption . | . . . . Corruption Purged . | . . . . Corruption Blocked . | . . . . Overload Shots . | . . . . Overflow Damage . | . . . . Projectiles . | . . . . Explosions . | . . . . Melee . | . . . . Knockbacks . | . . . . Impact . | . . . . Kinetic . | . . . . Secondary . | . . . . Self-Inflicted Damage 8 | . 5 . 3 Shots . | . . . . Rammed 5 | . 1 . 4 Targets Rammed 5 | . 1 . 4 Kicked . | . . . . Crushed . | . . . . Highest Temperature 170 | 52 34 170 . Average Temperature 36 | 28 12 43 . Received Heat Transfer 489 | 12 186 291 . Siege Activations . | . . . . Robots Corrupted . | . . . . Combat Hostiles . | . . . . Parts Fried . | . . . . Impact Corruptions . | . . . . Robots Melted . | . . . . Combat Hostiles . | . . . . Parts Melted . | . . . . Heat Transferred . | . . . . Parts Sabotaged . | . . . . Parts Stolen . | . . . . Parts Stripped . | . . . . Power Chain Reactions . | . . . . Alert | -11 -10 -9 -9 ------- Run | Yrd Mat Mat Min Peak Influence 265 | 20 153 265 71 Initial 51 | . 13 . 51 Average 77 | 3 72 96 52 Maximum Alert Level 1 | . . 1 . Low Security (%) 92 | 100 100 85 100 Level 1 7 | . . 14 . Level 2 . | . . . . Level 3 . | . . . . Level 4 . | . . . . Level 5 . | . . . . High Security . | . . . . Max Security . | . . . . Squads Dispatched 3 | . 2 1 . Investigation 1 | . 1 . . Extermination . | . . . . Reinforcement 2 | . 1 1 . Assault . | . . . . Garrison . | . . . . Intercept . | . . . . Searches Triggered . | . . . . Construction Impeded . | . . . . Haulers Reinforced . | . . . . Active Scanning Responses . | . . . . Cargo Convoy Interrupts . | . . . . Stealth | -11 -10 -9 -9 --------- Run | Yrd Mat Mat Min Distress Signals . | . . . . Communications Jammed . | . . . . Distress Signals . | . . . . Times Spotted 36 | 1 9 17 9 Peak Tracking Total 8 | 1 2 4 8 Tactical Retreats 3 | . 1 1 1 Traps | -11 -10 -9 -9 ------- Run | Yrd Mat Mat Min Traps Triggered 1 | . 1 . . Indirectly . | . . . . Trap Hack Attempts . | . . . . Triggered . | . . . . Disarmed . | . . . . Reprogrammed . | . . . . Reused . | . . . . Traps Extracted . | . . . . Installed . | . . . . Triggered . | . . . . Machines | -11 -10 -9 -9 ---------- Run | Yrd Mat Mat Min Machines Disabled . | . . . . Max in Single Turn . | . . . . Machines Repaired . | . . . . Machines Dismantled . | . . . . Machines Sabotaged . | . . . . Overloaded Fab Kills . | . . . . Hacking | -11 -10 -9 -9 --------- Run | Yrd Mat Mat Min Machines Accessed 2 | . 2 . . Terminals 2 | . 2 . . Fabricators . | . . . . Repair Stations . | . . . . Recycling Units . | . . . . Scanalyzers . | . . . . Garrison Access . | . . . . Total Hacks 4 | . 4 . . Successful . | . . . . Failed 4 | . 4 . . Catastrophic 1 | . 1 . . Database Lockouts . | . . . . Manual . | . . . . Terminals 4 | . 4 . . Fabricators . | . . . . Repair Stations . | . . . . Recycling Units . | . . . . Scanalyzers . | . . . . Garrison Access . | . . . . Terminal Hacks . | . . . . Fabricator Hacks . | . . . . Repair Station Hacks . | . . . . Recycling Unit Hacks . | . . . . Scanalyzer . | . . . . Garrison Access Hacks . | . . . . Unauthorized Hacks . | . . . . Terminals . | . . . . Fabricators . | . . . . Repair Stations . | . . . . Recycling Units . | . . . . Scanalyzers . | . . . . Garrison Access . | . . . . Data Cores Recovered . | . . . . Used . | . . . . Hacking Detections 2 | . 2 . . Full Trace Events 1 | . 1 . . Feedback Events . | . . . . Feedback Blocked . | . . . . Robot Schematics Acquired . | . . . . Robots Built . | . . . . Authchips . | . . . . Time . | . . . . Total Robot Build Rating . | . . . . Part Schematics Acquired . | . . . . Parts Built . | . . . . Authchips . | . . . . Time . | . . . . Total Part Build Rating . | . . . . Parts Repaired . | . . . . Time . | . . . . Parts Recycled . | . . . . Recycled Matter . | . . . . Retrieved Matter . | . . . . Retrieved Components . | . . . . Parts Scanalyzed . | . . . . Part Schematics Acquired . | . . . . Parts Damaged . | . . . . Bothacking | -11 -10 -9 -9 ------------ Run | Yrd Mat Mat Min Used RIF Installer . | . . . . Robots Hacked . | . . . . Non-combat . | . . . . Combat . | . . . . Robot Hacks Applied . | . . . . Relay Couplers Released . | . . . . Fabnet Peak Effective % . | . . . . Robots Rewired . | . . . . Allies Hacked . | . . . . Hacks Repelled . | . . . . Allies | -11 -10 -9 -9 -------- Run | Yrd Mat Mat Min Total Allies . | . . . . Largest Group . | . . . . Highest-Rated Group . | . . . . Highest-Rated Ally . | . . . . Total Orders . | . . . . Ally Attacks . | . . . . Total Damage . | . . . . Kills . | . . . . Allies Corrupted . | . . . . Allies Melted . | . . . . Intel | -11 -10 -9 -9 ------- Run | Yrd Mat Mat Min Robot Analysis Total . | . . . . Derelict Logs Recovered . | . . . . Drone Launches . | . . . . Drone Recoveries . | . . . . Exploration | -11 -10 -9 -9 ------------- Run | Yrd Mat Mat Min Turns Passed 1169 | 80 406 574 109 Spaces Moved 959 | 86 384 356 133 Core 75 | 30 19 16 10 Treads 105 | . . 105 . Legs . | . . . . Wheels 532 | 56 365 . 111 Hover . | . . . . Flight 247 | . . 235 12 Fastest Speed 40 | 50 80 40 40 Average Speed 94 | 69 85 116 74 Slowest Speed 300 | 80 200 300 80 Overloaded Moves . | . . . . Propulsion Burnouts . | . . . . Robots Hopped 2 | . . 2 . Cave-ins Triggered . | . . . . Exploration Rate (%) 29 | 5 47 29 36 Regions Visited 3 Branch Regions 1 Pre-discovered Areas . | . . . . Known Exits Taken . | . . . . Unknown Exits Taken 3 | 1 1 1 . Scrap Searched 1 | . . . 1 Spaces Dug . | . . . . Terrain Destroyed . | . . . . Melee . | . . . . Projectile . | . . . . AOE . | . . . . Terrain Rammed . | . . . . Walls Destroyed . | . . . . Machines Disabled . | . . . . Actions | -11 -10 -9 -9 --------- Run | Yrd Mat Mat Min Total 1132 | 100 431 457 144 Wait 31 | . 10 21 . Move 952 | 85 383 351 133 Hop 2 | . . 2 . Pick Up 27 | 6 8 12 1 Fast Attach . | . . . . Attach 25 | 6 4 11 4 Detach 11 | . 2 7 2 Swap . | . . . . Drop 10 | . 3 7 . Fire 69 | 3 20 46 . Melee . | . . . . Ram 5 | . 1 . 4 Kick . | . . . . Crush . | . . . . Escape Stasis . | . . . . Rewire . | . . . . Trap . | . . . . Miscellaneous . | . . . . Route ------- -11/Scrapyard -10/Materials (discovered 2 exits: [*Mat] / [*Min]) -9/Materials -9/Mines (discovered 1 exit: [*Mat]) History --------- Turn | Location | Event 2 | -11/Scrapyard | Met Revision 17 58 | -11/Scrapyard | Discovered new exit (range 8) 81 | -11/Scrapyard | Entered Materials 93 | -10/Materials | Discovered new exit (range 14) 246 | -10/Materials | Discovered new exit (range 15) 316 | -10/Materials | Build established: Mutant 487 | -10/Materials | Entered another Materials area 487 | -9/Materials | Evolved 2 slots: Power x1, Weapon x1 980 | -9/Materials | Core integrity fell below 50% 1016 | -9/Materials | Lost 3 parts (1p1n1w) 1047 | -9/Materials | Core integrity fell below 20% 1056 | -9/Materials | Discovered new exit (range 7) 1061 | -9/Materials | Entered Mines 1156 | -9/Mines | Discovered new exit (range 3) 1170 | -9/Mines | Destroyed by S-10 Pest with Light Assault Rifle Last Messages --------------- Something is scanning the area. Searching scrap... Found Core Shielding. Found Utility Shielding. Found 22 Matter. T-07 Excavator is excavating. Acquired 22 matter. T-07 Excavator is excavating. Acquired Core Shielding. T-07 Excavator is excavating. C-30 ARC bursts open, deploying its payload. S-10 Pest unfolds itself. K-01 Serf collects debris. EXIT=FOUND Wheel destroyed. Slammed into S-10 Pest. Lgt. Ion Engine destroyed. Slammed into S-10 Pest. Wheel destroyed. [Achievement: First Step to Greatness] Map ----- +----------------------------------------------------+ | | | ?????????????????????????????????? | | ?????????????????????????????????? | | ?????????????????????????????????? | | ?????????????????????########????? | | ?????????????????????# #????? | | ?????????????????????# #????? | | ?????????????????????# #????? | | ?????????????????????? < #????? | | ???????????????????????? #????? | | ?????????????????????????# #?????? | | ?????????????????????????# #?????? | | ?????????????????????????# #?????? | | ???? ????????????????????# #?????? | | ???# ?#################### ####??? | | ?###$ #??? | | ## % ####### ############### #??? | | # ??????# #?????????????# #??? | | # #?????# #????????????##s#??? | | ?# #????# #???????????## s##?? | | ?# ##??# #??????????##s #?? | | ## #??# #?????????## #?? | | #??# #????????## #?? | | #??# #???????## #?? | | ??? ##?# ##??????# #?? | | ??????# ### ##?????# @ #?? | | ???????# ##????## #?? | | ???????# #?????# ##?? | | ??????## #?????# ##??? | | ?????## ## #????# ##???? | | ?????# ### #???# ##????? | | ?????# ### #??? #?????? | | ?????## ### ##??? #?????? | | ??????## #?####??## #?????? | | ???????# #?####??# #?????? | | ???????## ### ##?# #?????? | | ????????# ## #?# #?????? | | ????????# #?# ##?????? | | ????????## # ### #???????? | | ?????????# ## #????????? | | ?????????# #?# #????????? | | ?????????# ### #????????? | | ?????????# ## ##???????? | | ????????## #???????? | | ????????# #???????? | | ????????# #???????? | | ????????# #???????? | | ????????## ## ### #???????? | | ?????????## ######?## ##???????? | | ??????????####???????# #????????? | +----------------------------------------------------+ Best States ------------- Heat Dissipation 38 Energy Generation 19 Energy Capacity 400 Matter Stores 300 Matter Capacity 300 Sight Range 16 Terrain Scan Density 10 ECM Strength 1 Additional Mass Support 6 Armor Coverage 150 Core Shielding 20 Utility Shielding 33 Evasion (%) 62 Recoil Reduction 1 Item Schematics ----------------- None Robot Schematics ------------------ None Fabricated ------------ Nothing Alien Tech Used ----------------- None Achievements -------------- Crack Shot First Step to Greatness One Hack Too Far Risk Taker Storm Trooper Uninvited Guest Challenges ------------ None Game ------ Seed SingularitySlugTerrabomb Manual? 0 Play Time 00:23:46 Cumulative 0.3 hours Start 2024.03.31 @ 01:22:16 End 2024.03.31 @ 01:46:21 Sessions 1 Manual Loads 0 Difficulty Rogue Special Mode None Game No. 1 Rogue 1 Adventurer 0 Explorer 0 Win Type - Total 0 Types 0/0/0/0/0/0/0/0/0 Lore% 0 Gallery% 1 Achievement% 2 Wizard Run 0 Options --------- Layout 0 ASCII 0 Keyboard 0 Movement Arrows Keybinds 0 Fullscreen 1 Font 24/Smallcaps Map View 76x50 Zoom Use 0% Tactical HUD 0 Map Filters NONE Filters NONE Steam 1 RUN: 9773cb8d-2887-43a0-a059-703164e38783